{"text_format":"1","workbook":"xlsx","n_sheets":1,"sheets":["Общий результат за сутки"],"not_rendered":{"charts":0,"images":0,"macros":1,"external_links":0,"defined_names":0,"comments":0,"pivot_tables":0},"unopened":[],"bounds":{"document_bytes":16777216,"sheet_cells":100000,"rows_first":2000,"rows_last":500,"rows_between":2000,"halvings":0,"cell_chars":16384,"cell_head_chars":4096},"cells_cut":0,"cells_raw":0,"read":"whole","date_system":"1900"}

{"sheet":"Общий результат за сутки","index":0,"n_rows":35,"n_cols":25,"rows_kept":35,"cut":false,"hidden":false,"merged":[[1,11,1,17],[2,11,2,17],[1,18,1,24],[2,18,2,24],[1,4,1,10],[2,4,2,10],[4,0,34,0],[4,1,33,1],[4,2,6,2],[7,2,26,2],[27,2,30,2],[31,2,33,2],[34,1,34,3]]}
[]
[null,null,null,"отдел","D1",null,null,null,null,null,null,"D2",null,null,null,null,null,null,"D3"]
["апрпторпто",null,null,"Иванов"]
[null,null,null,null,"06:00:00","08:00:00","10:00:00","12:00:00","14:00:00","16:00:00","18:00:00","12:00:00","14:00:00","16:00:00","18:00:00","20:00:00","22:00:00","23:59:00","18:00:00","20:00:00","22:00:00","23:59:00","02:00:00","04:00:00","06:00:00"]
[null,null,"Общие \nGeneral","перчатки",null,null,null,null,null,null,null,20,null,null,null,null,null,null,20]
[null,null,null,"варежки",40,null,null,null,null,null,null,40,null,null,null,null,null,null,40]
[null,null,null,"кастрюли",null,50,null,null,null,null,null,null,50,null,null,null,null,null,null,50]
[null,null,null,"прочее",null,null,null,18,null,null,null,null,null,null,18,null,null,null,null,null,null,18]
[null,null,null,"прочее"]
[null,null,null,"прочее"]
[null,null,null,"прочее",null,null,null,null,null,null,16,null,null,null,null,null,null,16,null,null,null,null,null,null,16]
[null,null,null,"прочее",14,null,null,null,null,null,null,14,null,null,null,null,null,null,14]
[null,null,null,"прочее"]
[null,null,null,"прочее"]
[null,null,null,"прочее",null,null,45,null,null,18,null,null,null,45,null,null,18,null,null,null,45,null,null,18]
[null,null,null,"прочее"]
[null,null,null,"прочее"]
[null,null,null,"прочее"]
[null,null,null,"прочее"]
[null,null,null,"прочее",null,90,null,null,35,null,null,null,90,null,null,35,null,null,null,90,null,null,35]
[null,null,null,"прочее"]
[null,null,null,"прочее"]
[null,null,null,"прочее"]
[null,null,null,"прочее"]
[null,null,null,"прочее"]
[null,null,null,"прочее"]
[null,null,null,"прочее"]
[null,null,null,"прочее"]
[null,null,null,"прочее"]
[null,null,null,"прочее"]
[null,null,null,"прочее",null,null,12,null,null,null,10,null,null,12,null,null,null,10,null,null,12,null,null,null,10]
[null,null,null,"прочее"]
[null,null,null,"прочее"]
[null,null,null,"прочее"]
[null,"ВСЕГО\nTOTAL",null,null,{"$f":"SUM(E5:E34)","v":54},140,57,18,35,18,26,{"$f":"SUM(L5:L34)","v":74},140,57,18,35,18,26,{"$f":"SUM(S5:S34)","v":74},140,57,18,35,18,26]